bitfinex-derivatives/quotes_BTCF0:USTF0_20251109
["timestamp","ask_amount","ask_price","bid_price","bid_amount"]
[1762663943874,0.51739595,101870.0,101860.0,0.04478]
[1762663944081,0.63056459,101870.0,101860.0,0.04478]
[1762663944784,0.63056459,101870.0,101850.0,0.02242]
[1762663944785,0.1554585,101860.0,101850.0,0.02242]
[1762663945089,0.62942714,101860.0,101850.0,0.02242]
[1762663946382,0.62942714,101860.0,101850.0,0.04478]
[1762663946582,0.62942714,101860.0,101850.0,0.04578]
[1762663946784,0.62942714,101860.0,101850.0,0.02342]
[1762663948978,0.99022714,101860.0,101850.0,0.02342]
[1762663949182,0.99022714,101860.0,101850.0,0.001]
[1762663956496,0.99022714,101860.0,101850.0,0.04575]
[1762663961905,0.99022714,101860.0,101850.0,0.001]
[1762663962505,0.26862714,101860.0,101850.0,0.001]
[1762663962703,0.99022714,101860.0,101850.0,0.001]
[1762663968908,1.02559764,101860.0,101850.0,0.001]
[1762663975211,1.02559764,101860.0,101840.0,0.03545477]
[1762663975212,0.1551281,101850.0,101840.0,0.03545477]
[1762663975396,0.62909674,101850.0,101840.0,0.03545477]
[1762663976411,0.62909674,101850.0,101840.0,0.05680477]
[1762663976817,0.62909674,101850.0,101840.0,0.07856477]
[1762663977016,0.62909674,101850.0,101840.0,0.17679257]
[1762663977904,0.62909674,101850.0,101840.0,0.17779257]
[1762663979920,0.62909674,101850.0,101840.0,0.07956477]
[1762663982417,0.62909674,101850.0,101840.0,0.17779257]
[1762663982614,0.62909674,101850.0,101840.0,0.07956477]
[1762663982816,0.62909674,101850.0,101840.0,0.17779257]
[1762663984319,0.60086292,101850.0,101840.0,0.07956477]
[1762663988222,0.68579774,101850.0,101840.0,0.03645477]
[1762663988425,0.72116824,101850.0,101840.0,0.00114705]
[1762663998331,0.7742312,101850.0,101840.0,0.00114705]
[1762664003038,0.4134312,101850.0,101840.0,0.00114705]
[1762664003238,1.1350312,101850.0,101840.0,0.00114705]
[1762664008345,1.08196824,101850.0,101840.0,0.00114705]
[1762664009641,1.1350312,101850.0,101840.0,0.00114705]
[1762664010043,1.08196824,101850.0,101840.0,0.00114705]
[1762664013550,1.1350312,101850.0,101840.0,0.00114705]
[1762664019848,1.0996607,101850.0,101840.0,0.00114705]
[1762664023370,0.1547478,101840.0,101830.0,0.00011325]
[1762664023570,0.72077188,101840.0,101830.0,0.00011325]
[1762664024473,0.72077188,101840.0,101830.0,0.00211325]
[1762664025271,0.72077188,101840.0,101830.0,0.00411325]
[1762664027874,0.72077188,101840.0,101830.0,0.02717325]
[1762664028272,0.72077188,101840.0,101830.0,0.00411325]
[1762664028466,0.72077188,101840.0,101830.0,0.02563325]
[1762664028868,0.72077188,101840.0,101830.0,0.00411325]
[1762664030379,0.1512171,101820.0,101810.0,0.13174335]
[1762664030573,1.04268674,101820.0,101810.0,0.07884772]
[1762664030974,1.04268674,101820.0,101810.0,0.04354]
[1762664031479,1.04279999,101820.0,101810.0,0.04354]
[1762664031879,1.04279999,101820.0,101810.0,0.04554]
[1762664032079,1.04279999,101820.0,101810.0,0.1437968]
[1762664032472,1.04279999,101820.0,101810.0,0.04554]
[1762664032876,1.04279999,101820.0,101810.0,0.04654]
[1762664033176,1.19069959,101820.0,101810.0,0.02502]
[1762664033381,1.19069959,101820.0,101810.0,0.003]
[1762664035570,1.19069959,101820.0,101810.0,0.002]
[1762664035982,0.1109126,101810.0,101800.0,0.1420756]
[1762664036187,0.68643224,101810.0,101800.0,0.02264]
[1762664036483,0.1561764,101800.0,101790.0,0.19000602]
[1762664036678,0.68684604,101800.0,101790.0,0.19000602]
[1762664036879,0.58857964,101800.0,101790.0,0.19000602]
[1762664037071,0.50364482,101800.0,101790.0,0.19000602]
[1762664037785,0.50264482,101800.0,101790.0,0.19000602]
[1762664037976,0.60091122,101800.0,101790.0,0.19000602]
[1762664038177,0.50164482,101800.0,101790.0,0.19000602]
[1762664038479,0.48858482,101800.0,101790.0,0.19300602]
[1762664038982,0.48858482,101800.0,101790.0,0.19500602]
[1762664039579,0.5019164,101800.0,101790.0,0.06143]
[1762664039787,0.68553604,101800.0,101790.0,0.04881]
[1762664040578,0.68553604,101800.0,101790.0,0.005]
[1762664040774,0.77047086,101800.0,101790.0,0.005]
[1762664040980,0.68553604,101800.0,101790.0,0.005]
[1762664041878,0.68553604,101800.0,101790.0,0.143086]
[1762664042073,0.68553604,101800.0,101790.0,0.04581]
[1762664042281,0.68562304,101800.0,101790.0,0.002]
[1762664043289,0.77055786,101800.0,101790.0,0.002]
[1762664043681,0.77055786,101800.0,101790.0,0.00106221]
[1762664043991,0.04485,101770.0,101760.0,0.15482532]
[1762664044186,0.12987302,101770.0,101760.0,0.15482532]
[1762664044383,0.0449382,101770.0,101760.0,0.15482532]
[1762664045088,0.0459382,101770.0,101760.0,0.15482532]
[1762664045789,0.0469382,101770.0,101760.0,0.15482532]
[1762664046789,0.0469382,101770.0,101760.0,0.51562532]
[1762664048291,0.1452335,101770.0,101760.0,0.51562532]
[1762664048486,0.0469382,101770.0,101760.0,0.51562532]
[1762664049897,0.0469382,101770.0,101760.0,0.15482532]
[1762664052598,0.0469382,101770.0,101760.0,0.51562532]
[1762664053291,0.0469382,101770.0,101760.0,0.15482532]
[1762664053292,0.1452335,101770.0,101760.0,0.15482532]
[1762664054697,0.0469382,101770.0,101760.0,0.15482532]
[1762664055787,0.0020882,101770.0,101760.0,0.51562532]
[1762664058995,0.0469382,101770.0,101760.0,0.51562532]
[1762664060397,0.0469382,101770.0,101760.0,0.55093304]
[1762664060600,0.0020882,101770.0,101760.0,0.55093304]
[1762664060800,0.0238182,101770.0,101760.0,0.55093304]
[1762664062803,0.0238182,101770.0,101760.0,0.19013304]
[1762664063002,0.0238182,101770.0,101760.0,0.55093304]
[1762664063398,0.0469382,101770.0,101760.0,0.55093304]
[1762664063797,0.1452335,101770.0,101760.0,0.55093304]
[1762664064103,0.1452335,101770.0,101760.0,0.19013304]
[1762664065701,0.0469382,101770.0,101760.0,0.19013304]
[1762664067304,0.1452335,101770.0,101760.0,0.19013304]
[1762664068207,0.0469382,101770.0,101760.0,0.19013304]
[1762664068400,0.0469382,101770.0,101760.0,0.24302867]
[1762664069408,0.1452335,101770.0,101760.0,0.24302867]
[1762664070409,0.6270131,101770.0,101760.0,0.24310088]
[1762664070603,0.6270131,101770.0,101760.0,0.15483162]
[1762664070805,0.66237343,101770.0,101760.0,0.15483162]
[1762664071200,0.6270131,101770.0,101760.0,0.15483162]
[1762664072711,0.5287178,101770.0,101760.0,0.15483162]
[1762664073217,0.6270131,101770.0,101760.0,0.14221162]
[1762664074307,0.5287178,101770.0,101760.0,0.14221162]
[1762664074719,0.6270132,101770.0,101760.0,0.14221162]
[1762664075114,0.5287178,101770.0,101760.0,0.15492162]
[1762664075320,0.6270132,101770.0,101760.0,0.15492162]
[1762664077920,0.5287178,101770.0,101760.0,0.15492162]
[1762664078525,0.6270132,101770.0,101760.0,0.15492162]
[1762664078722,0.5287178,101770.0,101760.0,0.15492162]
[1762664078923,0.6270132,101770.0,101760.0,0.15492162]
[1762664080332,0.6270131,101770.0,101760.0,0.15492162]
[1762664080528,0.5287178,101770.0,101760.0,0.15492162]
[1762664080734,0.6270131,101770.0,101760.0,0.15492162]
[1762664084633,0.5060335,101770.0,101760.0,0.19029525]
[1762664084836,0.5060335,101770.0,101760.0,0.15492162]
[1762664085137,0.4077382,101770.0,101760.0,0.15492162]
[1762664085435,0.5060335,101770.0,101760.0,0.15492162]
[1762664085735,0.6194231,101770.0,101760.0,0.15492162]
[1762664086536,0.0238182,101770.0,101760.0,0.19029525]
[1762664086734,0.4076282,101770.0,101760.0,0.19029525]
[1762664086937,0.4076282,101770.0,101760.0,0.15492162]
[1762664088235,0.4076282,101770.0,101760.0,0.19029525]
[1762664088427,0.5059235,101770.0,101760.0,0.19029525]
[1762664089028,0.5059235,101770.0,101760.0,0.15492162]
[1762664089231,0.5059235,101770.0,101760.0,0.19029525]
[1762664090032,0.4076282,101770.0,101760.0,0.19029525]
[1762664092333,0.0468282,101770.0,101760.0,0.19029525]
[1762664092736,0.0468282,101770.0,101760.0,0.55109525]
[1762664092936,0.0468282,101770.0,101760.0,0.60399088]
[1762664093133,0.0468282,101770.0,101760.0,0.24319088]
[1762664093532,0.0468282,101770.0,101760.0,0.19029525]
[1762664094137,0.0468282,101770.0,101760.0,0.24319088]
[1762664095139,0.0020882,101770.0,101760.0,0.60399088]
[1762664096532,0.0251082,101770.0,101760.0,0.60399088]
[1762664097339,0.0482482,101770.0,101760.0,0.60399088]
[1762664100747,0.0482482,101770.0,101760.0,0.24319088]
[1762664101649,0.0020882,101770.0,101760.0,0.73557572]
[1762664101946,0.0020882,101770.0,101760.0,0.62218612]
[1762664102147,0.0020882,101770.0,101760.0,0.73557572]
[1762664102343,0.00014705,101780.0,101770.0,0.1569553]
[1762664102546,0.00014705,101780.0,101770.0,0.20997971]
[1762664103046,0.02316705,101780.0,101770.0,0.20997971]
[1762664103248,0.02316705,101780.0,101770.0,0.24531903]
[1762664104347,0.02316705,101780.0,101770.0,0.33033622]
[1762664105045,0.02416705,101780.0,101770.0,0.33033622]
[1762664105246,0.02516705,101780.0,101770.0,0.33033622]
[1762664107351,0.04830705,101780.0,101770.0,0.24531903]
[1762664107649,0.04830705,101780.0,101770.0,0.33033622]
[1762664112148,0.02516705,101780.0,101770.0,0.33033622]
[1762664112349,0.04830705,101780.0,101770.0,0.33033622]
[1762664112647,0.04830705,101780.0,101770.0,0.69113622]
[1762664113548,0.02516705,101780.0,101770.0,0.69113622]
[1762664114853,0.04830705,101780.0,101770.0,0.69113622]
[1762664115056,0.13332424,101780.0,101770.0,0.69113622]
[1762664121453,0.33004703,101780.0,101770.0,0.24531903]
[1762664121661,0.69084703,101780.0,101770.0,0.19229462]
[1762664121952,0.60582984,101780.0,101770.0,0.19229462]
[1762664122152,0.69084703,101780.0,101770.0,0.19229462]
[1762664124659,0.67742703,101780.0,101770.0,0.19229462]
[1762664127661,0.49412424,101780.0,101770.0,0.19229462]
[1762664127859,0.49219424,101780.0,101770.0,0.19229462]
[1762664128054,0.49219424,101780.0,101770.0,0.24531903]
[1762664131551,0.02516705,101780.0,101770.0,0.24531903]
[1762664131756,0.00214705,101780.0,101770.0,0.67340723]
[1762664133068,0.04582705,101780.0,101770.0,0.58839004]
[1762664133266,0.04582705,101780.0,101770.0,0.65581193]
[1762664133563,0.13084424,101780.0,101770.0,0.57079474]
[1762664134465,0.22912984,101780.0,101770.0,0.20999474]
[1762664134961,0.32566703,101780.0,101770.0,0.20999474]
[1762664135160,0.68646703,101780.0,101770.0,0.0940213]
[1762664135361,0.60144984,101780.0,101770.0,0.1923166]
[1762664136160,0.68646703,101780.0,101770.0,0.1923166]
[1762664138067,0.60144984,101780.0,101770.0,0.1923166]
[1762664139368,0.51643265,101780.0,101770.0,0.1923166]
[1762664139567,0.60144984,101780.0,101770.0,0.1923166]
[1762664144266,0.60144984,101780.0,101770.0,0.1569553]
[1762664144658,0.68646703,101780.0,101770.0,0.1569553]
[1762664146373,0.60144984,101780.0,101770.0,0.1569553]
[1762664147172,0.60144984,101780.0,101770.0,0.1923166]
[1762664147776,0.32566703,101780.0,101770.0,0.1923166]
[1762664147968,0.68646703,101780.0,101770.0,0.1923166]
[1762664148871,0.68646703,101780.0,101770.0,0.0940213]
[1762664149174,0.68646703,101780.0,101770.0,0.0800913]
[1762664149374,0.68646703,101780.0,101770.0,0.1783866]
[1762664150573,0.68646703,101780.0,101770.0,0.0800913]
[1762664150774,0.68646703,101780.0,101770.0,0.1783866]
[1762664151978,0.32566703,101780.0,101770.0,0.1783866]
[1762664152170,0.68646703,101780.0,101770.0,0.0800913]
[1762664152473,0.60144984,101780.0,101770.0,0.0800913]
[1762664153473,0.68646703,101780.0,101770.0,0.04473]
[1762664155975,0.68646703,101780.0,101770.0,0.1430253]
[1762664158779,0.32566703,101780.0,101770.0,0.1430253]
[1762664158984,0.68646703,101780.0,101770.0,0.04473]
[1762664161779,0.68646703,101780.0,101770.0,0.1430253]
[1762664162173,0.68646703,101780.0,101770.0,0.1783866]
[1762664165282,0.60144984,101780.0,101770.0,0.1783866]
[1762664165477,0.60144984,101780.0,101770.0,0.0800913]
[1762664165683,0.60144984,101780.0,101770.0,0.1783866]
[1762664166389,0.62981896,101780.0,101770.0,0.1783866]
[1762664167682,0.62981896,101780.0,101770.0,0.0800913]
[1762664169383,0.62981896,101780.0,101770.0,0.1783866]
[1762664177891,0.51643265,101780.0,101770.0,0.1783866]
[1762664180204,0.62981896,101780.0,101770.0,0.1783866]
[1762664181998,0.26901896,101780.0,101770.0,0.1783866]
[1762664182203,0.62981896,101780.0,101770.0,0.1783866]
[1762664183202,0.51643265,101780.0,101770.0,0.1783866]
[1762664186704,0.51643265,101780.0,101770.0,0.1923366]
[1762664187309,0.50491265,101780.0,101770.0,0.1923366]
[1762664187606,0.04582705,101780.0,101770.0,0.70179635]
[1762664187806,0.04582705,101780.0,101770.0,0.58841004]
[1762664188300,0.04582705,101780.0,101770.0,0.57083102]
[1762664189510,0.14411265,101780.0,101770.0,0.57083102]
[1762664190408,0.04582705,101780.0,101770.0,0.57083102]
[1762664191105,0.04582705,101780.0,101770.0,0.62476545]
[1762664192011,0.04582705,101780.0,101770.0,0.57083102]
[1762664193211,0.04582705,101780.0,101770.0,0.62475558]
[1762664194205,0.02461705,101780.0,101770.0,0.62475558]
[1762664194406,0.04775705,101780.0,101770.0,0.62475558]
[1762664200612,0.04775705,101780.0,101770.0,0.57083102]
[1762664206815,0.04775705,101780.0,101770.0,0.68421733]
[1762664207325,0.04775705,101780.0,101770.0,0.57083102]
[1762664209425,0.04775705,101780.0,101770.0,0.21003102]
[1762664209629,0.04775705,101780.0,101770.0,0.57083102]
[1762664213829,0.04775705,101780.0,101770.0,0.62462604]
[1762664214329,0.04775705,101780.0,101770.0,0.73801235]
[1762664214930,0.04775705,101780.0,101770.0,0.68421733]
[1762664215229,0.04775705,101780.0,101770.0,0.57083102]
[1762664216233,0.04775705,101780.0,101770.0,0.58841004]
[1762664221935,0.04583705,101780.0,101770.0,0.58841004]
[1762664222432,0.00214705,101780.0,101770.0,0.58841004]
[1762664222631,0.49200329,101810.0,101800.0,0.1555163]
[1762664222841,0.07811426,101810.0,101800.0,0.1555163]
[1762664223136,0.04278,101810.0,101800.0,0.19090255]
[1762664223443,0.04278,101810.0,101800.0,0.55170255]
[1762664223829,0.04478,101810.0,101800.0,0.65784589]
[1762664224029,0.02356,101810.0,101800.0,0.62245964]
[1762664224232,0.002,101810.0,101800.0,0.71810837]
[1762664224532,0.04292705,101820.0,101810.0,0.1555067]
[1762664224837,0.04292705,101820.0,101810.0,0.55163138]
[1762664226138,0.04592705,101820.0,101810.0,0.55163138]
[1762664226329,0.04892705,101820.0,101810.0,0.55163138]
[1762664226634,0.04592705,101820.0,101810.0,0.55163138]
[1762664226852,0.04792705,101820.0,101810.0,0.55163138]
[1762664227339,0.02670705,101820.0,101810.0,0.55163138]
[1762664227533,0.02370705,101820.0,101810.0,0.55163138]
[1762664227842,0.02570705,101820.0,101810.0,0.55163138]
[1762664228341,0.02570705,101820.0,101810.0,0.5163067]
[1762664229038,0.04692705,101820.0,101810.0,0.5163067]
[1762664229238,0.13188264,101820.0,101810.0,0.1555067]
[1762664229630,0.31508523,101820.0,101810.0,0.05725]
[1762664229944,0.68285523,101820.0,101810.0,0.05725]
[1762664230642,0.68285523,101820.0,101810.0,0.1555067]
[1762664232047,0.68285523,101820.0,101810.0,0.04419]
[1762664234450,0.68285523,101820.0,101810.0,0.1424467]
[1762664237749,0.68285523,101820.0,101810.0,0.1555067]
[1762664238248,0.58460823,101820.0,101810.0,0.1555067]
[1762664238445,0.68285523,101820.0,101810.0,0.1555067]
[1762664239041,0.58460823,101820.0,101810.0,0.1555067]
[1762664239240,0.68285523,101820.0,101810.0,0.1555067]
[1762664239445,0.67588523,101820.0,101810.0,0.1555067]
[1762664240140,0.49268264,101820.0,101810.0,0.1555067]
[1762664240346,0.67588523,101820.0,101810.0,0.1555067]
[1762664240742,0.57763823,101820.0,101810.0,0.1555067]
[1762664240942,0.59092964,101820.0,101810.0,0.1555067]
[1762664241446,0.49268264,101820.0,101810.0,0.1555067]
[1762664242350,0.59092964,101820.0,101810.0,0.1555067]
[1762664245345,0.49268264,101820.0,101810.0,0.1555067]
[1762664246842,0.59092964,101820.0,101810.0,0.1555067]
[1762664248055,0.23012964,101820.0,101810.0,0.1555067]
[1762664248352,0.59092964,101820.0,101810.0,0.1555067]
[1762664250256,0.49268264,101820.0,101810.0,0.1555067]
[1762664250557,0.23012964,101820.0,101810.0,0.1555067]
[1762664251150,0.13188264,101820.0,101810.0,0.1555067]
[1762664251552,0.23012964,101820.0,101810.0,0.1555067]
[1762664252354,0.23012964,101820.0,101810.0,0.19083138]
[1762664252557,0.13188264,101820.0,101810.0,0.19083138]
[1762664262271,0.04692705,101820.0,101810.0,0.19083138]
[1762664262570,0.13188264,101820.0,101810.0,0.19083138]
[1762664268484,0.04692705,101820.0,101810.0,0.60471076]
[1762664270074,0.04492705,101820.0,101810.0,0.60471076]
[1762664270778,0.04292705,101820.0,101810.0,0.60471076]
[1762664273982,0.12788264,101820.0,101810.0,0.60471076]
[1762664274479,0.04292705,101820.0,101810.0,0.60471076]
[1762664274787,0.02281705,101820.0,101810.0,0.65434167]
[1762664274986,0.04582705,101820.0,101810.0,0.56938608]
[1762664277590,0.00014705,101820.0,101810.0,0.56938608]
[1762664278482,0.02337705,101820.0,101810.0,0.65434167]
[1762664278684,0.04473705,101820.0,101810.0,0.65434167]
[1762664279687,0.22793964,101820.0,101810.0,0.56938608]
[1762664280077,0.32014523,101820.0,101810.0,0.09726938]
[1762664280284,0.68094523,101820.0,101810.0,0.07953992]
[1762664280681,0.68094523,101820.0,101810.0,0.17779652]
[1762664281590,0.68294523,101820.0,101810.0,0.17779652]
[1762664281787,0.68294523,101820.0,101810.0,0.07953992]
[1762664281987,0.68294523,101820.0,101810.0,0.03534992]
[1762664282181,0.68294523,101820.0,101810.0,0.13360652]
[1762664282387,0.68294523,101820.0,101810.0,0.0982566]
[1762664282586,0.68494523,101820.0,101810.0,0.0982566]
[1762664284092,0.1557466,101810.0,101800.0,0.2436291]
[1762664284281,0.60150219,101810.0,101800.0,0.2436291]
[1762664285889,0.50324559,101810.0,101800.0,0.2436291]
[1762664287589,0.41829,101810.0,101800.0,0.2436291]
[1762664287790,0.50324559,101810.0,101800.0,0.2436291]
[1762664288582,0.60150219,101810.0,101800.0,0.2436291]
[1762664289383,0.60150219,101810.0,101800.0,0.2305691]
[1762664290395,0.62987166,101810.0,101800.0,0.2305691]
[1762664291492,0.62987166,101810.0,101800.0,0.17748972]
[1762664291693,0.62987166,101810.0,101800.0,0.19134972]
[1762664293584,0.62987166,101810.0,101800.0,0.03534992]
[1762664293790,0.1557562,101800.0,101790.0,0.00014705]
[1762664294090,0.77854058,101800.0,101790.0,0.00014705]
[1762664294396,0.74320632,101800.0,101790.0,0.00014705]
[1762664294788,0.62988126,101800.0,101790.0,0.00014705]
[1762664298500,0.62988126,101800.0,101790.0,0.14230295]
[1762664299600,0.99068126,101800.0,101790.0,0.14230295]
[1762664299993,0.99068126,101800.0,101790.0,0.04402705]
[1762664300199,0.99068126,101800.0,101790.0,0.02161705]
[1762664302087,0.99068126,101800.0,101790.0,0.00014705]
[1762664305303,0.99068126,101800.0,101790.0,0.09842295]
[1762664306907,0.99068126,101800.0,101790.0,0.00014705]
[1762664307906,0.99068126,101800.0,101790.0,0.09842295]
[1762664308494,0.99068126,101800.0,101790.0,0.00014705]
[1762664311008,0.26908126,101800.0,101790.0,0.00014705]
[1762664311210,0.99068126,101800.0,101790.0,0.00014705]
[1762664316022,1.01201292,101800.0,101790.0,0.00014705]
[1762664318518,1.04734718,101800.0,101790.0,0.00014705]
[1762664318717,1.16067224,101800.0,101790.0,0.00014705]
[1762664319309,1.04734718,101800.0,101790.0,0.00014705]
[1762664322326,1.10041014,101800.0,101790.0,0.00014705]
[1762664322822,0.73961014,101800.0,101790.0,0.00014705]
[1762664323027,1.10041014,101800.0,101790.0,0.00014705]
[1762664325226,1.2137352,101800.0,101790.0,0.00014705]
[1762664326727,1.10041014,101800.0,101790.0,0.00014705]
[1762664329130,1.2137352,101800.0,101790.0,0.00014705]
[1762664329335,0.1486856,101780.0,101770.0,0.27401048]
[1762664329525,0.64414232,101780.0,101770.0,0.27401048]
[1762664330328,0.64414232,101780.0,101770.0,0.28683048]
[1762664330524,0.64414232,101780.0,101770.0,0.28883048]
[1762664331227,0.54585672,101780.0,101770.0,0.28883048]
[1762664331429,0.18505672,101780.0,101770.0,0.64963048]
[1762664331830,0.18505672,101780.0,101770.0,0.65263048]
[1762664332635,0.28334232,101780.0,101770.0,0.65263048]
[1762664333032,0.28334232,101780.0,101770.0,0.21395308]
[1762664344843,0.17001726,101780.0,101770.0,0.21395308]
[1762664345042,0.28334232,101780.0,101770.0,0.21395308]
[1762664347350,0.28341033,101780.0,101770.0,0.21395308]
[1762664350447,0.34015629,101780.0,101770.0,0.21395308]
[1762664351247,0.24187069,101780.0,101770.0,0.21395308]
[1762664352052,0.34015629,101780.0,101770.0,0.21395308]
[1762664357255,0.17008527,101780.0,101770.0,0.21452308]
[1762664357454,0.16328527,101780.0,101770.0,0.21452308]
[1762664357754,0.33335629,101780.0,101770.0,0.21452308]
[1762664359654,0.34656629,101780.0,101770.0,0.21452308]
[1762664363349,0.34658253,101780.0,101770.0,0.21452308]
[1762664369155,0.24829693,101780.0,101770.0,0.21452308]
[1762664369952,0.16326142,101780.0,101770.0,0.21452308]
[1762664371262,0.15005142,101780.0,101770.0,0.21452308]
[1762664377772,0.23508693,101780.0,101770.0,0.21452308]
[1762664378468,0.33337253,101780.0,101770.0,0.21452308]
[1762664379869,0.23508693,101780.0,101770.0,0.21452308]
[1762664383563,0.33337253,101780.0,101770.0,0.21452308]
[1762664386773,0.24833702,101780.0,101770.0,0.21452308]
[1762664386976,0.15005142,101780.0,101770.0,0.21452308]
[1762664394579,0.15005805,101780.0,101770.0,0.21452308]
[1762664397179,0.24834365,101780.0,101770.0,0.21452308]
[1762664401782,0.15005805,101780.0,101770.0,0.21452308]
[1762664402283,0.24834365,101780.0,101770.0,0.21452308]
[1762664403286,0.26180365,101780.0,101770.0,0.21452308]
[1762664403582,0.70763916,101780.0,101770.0,0.21452308]
[1762664404392,0.42582254,101780.0,101770.0,0.21452308]
[1762664404578,0.59589356,101780.0,101770.0,0.21452308]
[1762664404885,0.42582254,101780.0,101770.0,0.21452308]
[1762664405084,0.59589356,101780.0,101770.0,0.21452308]
[1762664405987,0.51085805,101780.0,101770.0,0.21452308]
[1762664406174,0.59589356,101780.0,101770.0,0.21452308]
[1762664406885,0.42582254,101780.0,101770.0,0.21452308]
[1762664407077,0.59589356,101780.0,101770.0,0.21452308]
[1762664407478,0.70763916,101780.0,101770.0,0.21452308]
[1762664407778,0.70763916,101780.0,101770.0,0.19980308]
[1762664409983,0.70763916,101780.0,101770.0,0.19970308]
[1762664411488,0.60935356,101780.0,101770.0,0.19970308]
[1762664412389,0.65094941,101780.0,101770.0,0.19970308]
[1762664413087,0.65094941,101780.0,101770.0,0.21342308]
[1762664424590,0.65094941,101780.0,101770.0,0.11512938]
[1762664424796,0.65094941,101780.0,101770.0,0.10140938]
[1762664424998,0.65094941,101780.0,101770.0,0.19970458]
[1762664427192,0.65094941,101780.0,101770.0,0.10140938]
[1762664427593,0.65094941,101780.0,101770.0,0.19970458]
[1762664428199,0.65094941,101780.0,101770.0,0.1467252]
[1762664428794,0.06502254,101780.0,101770.0,0.1603952]
[1762664429096,0.06502254,101780.0,101770.0,0.5211952]
[1762664429097,0.16330814,101780.0,101770.0,0.5211952]
[1762664429900,0.16330814,101780.0,101770.0,0.1603952]
[1762664430201,0.16330814,101780.0,101770.0,0.21347596]
[1762664431401,0.06502254,101780.0,101770.0,0.21347596]
[1762664435691,0.06502254,101780.0,101770.0,0.57427596]
[1762664436396,0.16330814,101780.0,101770.0,0.57427596]
[1762664436596,0.06502254,101780.0,101770.0,0.57427596]
[1762664438807,0.16330814,101780.0,101770.0,0.57427596]
[1762664443713,0.27668941,101780.0,101770.0,0.57427596]
[1762664444820,0.06502254,101780.0,101770.0,0.57427596]
[1762664445013,0.06502254,101780.0,101770.0,0.21347596]
[1762664445318,0.06502254,101780.0,101770.0,0.57427596]
[1762664445905,0.17840381,101780.0,101770.0,0.57427596]
[1762664453023,0.06502254,101780.0,101770.0,0.57427596]
[1762664455516,0.06502254,101780.0,101770.0,0.57227596]
[1762664456013,0.06502254,101780.0,101770.0,0.56927596]
[1762664457425,0.06502254,101780.0,101770.0,0.20847596]
[1762664457625,0.06502254,101780.0,101770.0,0.56927596]
[1762664458618,0.16330814,101780.0,101770.0,0.56927596]
[1762664460432,0.06502254,101780.0,101770.0,0.56927596]
[1762664466142,0.06502254,101780.0,101770.0,0.20847596]
[1762664466441,0.16330814,101780.0,101770.0,0.56927596]
[1762664468542,0.27738326,101780.0,101770.0,0.56927596]
[1762664469334,0.17909766,101780.0,101770.0,0.56927596]
[1762664471442,0.06571639,101780.0,101770.0,0.56927596]
[1762664474443,0.15074486,101780.0,101770.0,0.56927596]
[1762664475742,0.24903046,101780.0,101770.0,0.56927596]
[1762664475945,0.15074486,101780.0,101770.0,0.56927596]
[1762664482652,0.10714486,101780.0,101770.0,0.56927596]
[1762664483750,0.12961486,101780.0,101770.0,0.56927596]
[1762664483952,0.15131486,101780.0,101770.0,0.65430443]
[1762664484761,0.15131486,101780.0,101770.0,0.56927596]
[1762664485349,0.10714486,101780.0,101770.0,0.56927596]
[1762664486357,0.12961486,101780.0,101770.0,0.56927596]
[1762664486658,0.15245486,101780.0,101770.0,0.56927596]
[1762664494354,0.25074036,101780.0,101770.0,0.56927596]
[1762664495165,0.15245486,101780.0,101770.0,0.56927596]
[1762664497664,0.23748333,101780.0,101770.0,0.56927596]
[1762664498355,0.33576883,101780.0,101770.0,0.56927596]
[1762664499362,0.23748333,101780.0,101770.0,0.56927596]
[1762664500555,0.33576883,101780.0,101770.0,0.56927596]
[1762664500854,0.23748333,101780.0,101770.0,0.56927596]
[1762664502163,0.15245486,101780.0,101770.0,0.56927596]
[1762664502564,0.10714486,101780.0,101770.0,0.62246876]
[1762664502865,0.12945486,101780.0,101770.0,0.62246876]
[1762664503057,0.15229486,101780.0,101770.0,0.62246876]
[1762664504765,0.70955883,101780.0,101770.0,0.11018076]
[1762664507268,0.70955883,101780.0,101770.0,0.04343]
[1762664508265,0.74489309,101780.0,101770.0,0.04343]
[1762664510265,0.1553752,101770.0,101760.0,0.04401662]
[1762664510566,0.62332006,101770.0,101760.0,0.04401662]
[1762664510763,0.70834853,101770.0,101760.0,0.04401662]
[1762664511458,0.62332006,101770.0,101760.0,0.04501662]
[1762664512772,0.62332006,101770.0,101760.0,0.04601662]
[1762664513969,0.62332006,101770.0,101760.0,0.14432142]
[1762664515262,0.62332006,101770.0,101760.0,0.15807142]
[1762664519569,0.62332006,101770.0,101760.0,0.14432142]
[1762664523469,0.62332006,101770.0,101760.0,0.04601662]
[1762664523864,0.62332006,101770.0,101760.0,0.14432142]
[1762664534369,0.65171045,101770.0,101760.0,0.14432142]
[1762664534974,0.65171045,101770.0,101760.0,0.04601662]
[1762664536184,0.65171045,101770.0,101760.0,0.00209662]
[1762664539283,0.68704471,101770.0,101760.0,0.00209662]
[1762664540277,0.68704471,101770.0,101760.0,0.02310662]
[1762664540680,0.68704471,101770.0,101760.0,0.12141142]
[1762664541178,0.68704471,101770.0,101760.0,0.02310662]
[1762664542884,0.68704471,101770.0,101760.0,0.12141142]
[1762664543784,0.68704471,101770.0,101760.0,0.14242142]
[1762664543986,0.68704471,101770.0,101760.0,0.04411662]
[1762664544784,0.68704471,101770.0,101760.0,0.14242142]
[1762664545583,0.68704471,101770.0,101760.0,0.04411662]
[1762664548687,0.68704471,101770.0,101760.0,0.02310662]
[1762664549283,0.68704471,101770.0,101760.0,0.00209662]
[1762664549490,0.74010767,101770.0,101760.0,0.00209662]
[1762664550488,0.74010767,101770.0,101760.0,0.00109662]
[1762664551891,0.74010767,101770.0,101760.0,9.662e-05]
[1762664552881,0.68704471,101770.0,101760.0,9.662e-05]
[1762664556993,0.74010767,101770.0,101760.0,9.662e-05]
[1762664565001,0.68704471,101770.0,101760.0,9.662e-05]
[1762664566501,1.04784471,101770.0,101760.0,9.662e-05]
[1762664572606,1.10090767,101770.0,101760.0,9.662e-05]
[1762664573502,0.37930767,101770.0,101760.0,9.662e-05]
[1762664573708,1.10090767,101770.0,101760.0,9.662e-05]
[1762664576006,1.10130865,101770.0,101760.0,9.662e-05]
[1762664580208,1.10130865,101770.0,101760.0,0.02209662]
[1762664580410,1.10130865,101770.0,101760.0,9.662e-05]
[1762664580904,0.37970865,101770.0,101760.0,9.662e-05]
[1762664581208,1.10130865,101770.0,101760.0,9.662e-05]
[1762664583311,1.10130865,101770.0,101760.0,0.02209662]
[1762664583514,1.10130865,101770.0,101760.0,9.662e-05]
[1762664586214,1.10330865,101770.0,101760.0,9.662e-05]
[1762664586414,1.10530865,101770.0,101760.0,9.662e-05]
[1762664588618,1.10530865,101770.0,101760.0,0.12040142]
[1762664588818,1.10530865,101770.0,101760.0,0.02209662]
[1762664589118,1.10530865,101770.0,101760.0,9.662e-05]
[1762664592820,1.10530865,101770.0,101760.0,0.09840142]
[1762664593020,1.10530865,101770.0,101760.0,0.12040142]
[1762664593718,1.10530865,101770.0,101760.0,0.14234142]
[1762664593925,1.10530865,101770.0,101760.0,0.15523142]
[1762664594922,1.10530865,101770.0,101760.0,0.14234142]